[Event "Titled Tuesday Blitz March 21 Early 2023"]
[White "Abduzhaparov"]
[Black "Popov, Mikhail"]
[BlackFideId "4146182"]
[WhiteElo "2350"]
[BlackElo "2270"]
[Result "0-1"]
[Round "05"]
[TimeControl "180+2"]
[Date "2023.03.21"]
[WhiteClock "0:00:26"]
[BlackClock "0:00:25"]

1. Nf3 {[%clk 0:02:55]}  Nf6 {[%clk 0:02:59]} 2. c4 {[%clk 0:02:56]}  g6 {[%clk 0:03:00]} 3. Nc3 {[%clk 0:02:57]}  d5 {[%clk 0:03:00]} 4. Qa4+ {[%clk 0:02:55]}  Nc6 {[%clk 0:02:57]} 5. Nd4 {[%clk 0:02:48]}  Qd7 {[%clk 0:02:07]} 6. cxd5 {[%clk 0:02:35]}  Nxd5 {[%clk 0:02:06]} 7. Nxd5 {[%clk 0:02:25]}  Qxd5 {[%clk 0:02:06]} 8. Nxc6 {[%clk 0:02:25]}  Qxc6 {[%clk 0:01:59]} 9. Qxc6+ {[%clk 0:02:24]}  bxc6 {[%clk 0:01:59]} 10. g3 {[%clk 0:02:23]}  Be6 {[%clk 0:01:49]} 11. Bg2 {[%clk 0:02:13]}  Kd7 {[%clk 0:01:40]} 12. b3 {[%clk 0:02:04]}  Bg7 {[%clk 0:01:40]} 13. Rb1 {[%clk 0:02:03]}  a5 {[%clk 0:01:39]} 14. O-O {[%clk 0:01:53]}  a4 {[%clk 0:01:31]} 15. Bb2 {[%clk 0:01:47]}  Bxb2 {[%clk 0:01:21]} 16. Rxb2 {[%clk 0:01:48]}  axb3 {[%clk 0:01:19]} 17. axb3 {[%clk 0:01:27]}  Rhb8 {[%clk 0:01:18]} 18. b4 {[%clk 0:01:24]}  Bd5 {[%clk 0:01:08]} 19. e4 {[%clk 0:01:24]}  Be6 {[%clk 0:01:06]} 20. d4 {[%clk 0:01:10]}  Ra4 {[%clk 0:01:05]} 21. d5 {[%clk 0:00:59]}  cxd5 {[%clk 0:00:56]} 22. exd5 {[%clk 0:01:00]}  Bf5 {[%clk 0:00:55]} 23. b5 {[%clk 0:00:51]}  Ra5 {[%clk 0:00:53]} 24. Rc1 {[%clk 0:00:41]}  Raxb5 {[%clk 0:00:49]} 25. Rxb5 {[%clk 0:00:42]}  Rxb5 {[%clk 0:00:49]} 26. d6 {[%clk 0:00:42]}  Rb1 {[%clk 0:00:39]} 27. Bc6+ {[%clk 0:00:35]}  Kxd6 {[%clk 0:00:38]} 28. Rxb1 {[%clk 0:00:32]}  Bxb1 {[%clk 0:00:39]} 29. Be8 {[%clk 0:00:32]}  Ba2 {[%clk 0:00:35]} 30. f4 {[%clk 0:00:32]}  c6 {[%clk 0:00:31]} 31. Kf2 {[%clk 0:00:32]}  Bd5 {[%clk 0:00:25]} 32. f5 {[%clk 0:00:32]}  Kc7 {[%clk 0:00:24]} 33. fxg6 {[%clk 0:00:31]}  hxg6 {[%clk 0:00:25]} 34. h4 {[%clk 0:00:28]}  Kd8 {[%clk 0:00:25]} 35. h5 {[%clk 0:00:27]}  gxh5 {[%clk 0:00:26]} 36. g4 {[%clk 0:00:26]}  hxg4 {[%clk 0:00:25]} 0-1


[Site "https://www.chess.com"]

[Event "Titled Tuesday Blitz March 21 Early 2023"]
[White "Nefedov, Sergey"]
[Black "Ardila, Oscar Humberto"]
[WhiteFideId "24113417"]
[BlackFideId "4404742"]
[WhiteElo "2227"]
[BlackElo "1911"]
[Result "1-0"]
[Round "05"]
[TimeControl "180+2"]
[Date "2023.03.21"]
[WhiteClock "0:00:19"]
[BlackClock "0:00:04"]

1. d4 {[%clk 0:02:55]}  Nf6 {[%clk 0:02:59]} 2. Nf3 {[%clk 0:02:54]}  g6 {[%clk 0:02:59]} 3. c4 {[%clk 0:02:54]}  Bg7 {[%clk 0:02:59]} 4. Nc3 {[%clk 0:02:54]}  O-O {[%clk 0:02:58]} 5. Bg5 {[%clk 0:02:55]}  h6 {[%clk 0:02:58]} 6. Bf4 {[%clk 0:02:55]}  d6 {[%clk 0:02:56]} 7. Qd2 {[%clk 0:02:55]}  Kh7 {[%clk 0:02:56]} 8. h4 {[%clk 0:02:54]}  Nh5 {[%clk 0:02:56]} 9. e4 {[%clk 0:02:45]}  Nxf4 {[%clk 0:02:50]} 10. Qxf4 {[%clk 0:02:45]}  e5 {[%clk 0:02:48]} 11. dxe5 {[%clk 0:02:42]}  dxe5 {[%clk 0:02:47]} 12. Qe3 {[%clk 0:02:38]}  c6 {[%clk 0:02:22]} 13. Rd1 {[%clk 0:02:36]}  Qb6 {[%clk 0:02:14]} 14. b3 {[%clk 0:02:31]}  Qxe3+ {[%clk 0:02:12]} 15. fxe3 {[%clk 0:02:31]}  Bg4 {[%clk 0:02:06]} 16. Be2 {[%clk 0:02:30]}  Kg8 {[%clk 0:02:03]} 17. Kf2 {[%clk 0:02:21]}  Na6 {[%clk 0:02:02]} 18. a3 {[%clk 0:02:03]}  Rad8 {[%clk 0:01:56]} 19. b4 {[%clk 0:02:02]}  Nc7 {[%clk 0:01:44]} 20. c5 {[%clk 0:01:56]}  Bf6 {[%clk 0:01:30]} 21. Nd2 {[%clk 0:01:51]}  Be6 {[%clk 0:01:25]} 22. Nc4 {[%clk 0:01:48]}  Kg7 {[%clk 0:01:19]} 23. Nd6 {[%clk 0:01:45]}  b6 {[%clk 0:01:15]} 24. h5 {[%clk 0:01:37]}  bxc5 {[%clk 0:01:12]} 25. bxc5 {[%clk 0:01:27]}  Rb8 {[%clk 0:01:12]} 26. Rb1 {[%clk 0:01:22]}  Bg5 {[%clk 0:00:52]} 27. Rb4 {[%clk 0:01:05]}  a5 {[%clk 0:00:51]} 28. Rb6 {[%clk 0:01:03]}  Nb5 {[%clk 0:00:26]} 29. Ncxb5 {[%clk 0:00:59]}  cxb5 {[%clk 0:00:26]} 30. Bxb5 {[%clk 0:00:59]}  Rxb6 {[%clk 0:00:19]} 31. cxb6 {[%clk 0:00:59]}  Rb8 {[%clk 0:00:20]} 32. b7 {[%clk 0:00:37]}  Be7 {[%clk 0:00:19]} 33. Ne8+ {[%clk 0:00:34]}  Kf8 {[%clk 0:00:19]} 34. hxg6 {[%clk 0:00:34]}  fxg6 {[%clk 0:00:19]} 35. Rxh6 {[%clk 0:00:31]}  Rxb7 {[%clk 0:00:19]} 36. Rh8+ {[%clk 0:00:31]}  Kf7 {[%clk 0:00:19]} 37. a4 {[%clk 0:00:30]}  Bb4 {[%clk 0:00:13]} 38. Rh7+ {[%clk 0:00:29]}  Kf8 {[%clk 0:00:12]} 39. Rxb7 {[%clk 0:00:30]}  g5 {[%clk 0:00:11]} 40. Nf6 {[%clk 0:00:27]}  g4 {[%clk 0:00:11]} 41. Nd7+ {[%clk 0:00:26]}  Ke7 {[%clk 0:00:10]} 42. Nxe5+ {[%clk 0:00:23]}  Kd6 {[%clk 0:00:08]} 43. Nc6 {[%clk 0:00:23]}  Kc5 {[%clk 0:00:08]} 44. Nd4 {[%clk 0:00:19]}  Ba2 {[%clk 0:00:04]} 45. e5 {[%clk 0:00:19]} 1-0


[Site "https://www.chess.com"]

[Event "Titled Tuesday Blitz March 21 Early 2023"]
[White "Adithya A Chullikkad"]
[Black "The_Sherman_Variation"]
[WhiteFideId "45078734"]
[WhiteElo "1984"]
[BlackElo "2551"]
[Result "0-1"]
[Round "05"]
[TimeControl "180+2"]
[Date "2023.03.21"]
[WhiteClock "0:00:26"]
[BlackClock "0:00:54"]

1. d4 {[%clk 0:02:55]}  Nf6 {[%clk 0:02:58]} 2. Bf4 {[%clk 0:02:54]}  c5 {[%clk 0:02:58]} 3. e3 {[%clk 0:02:53]}  e6 {[%clk 0:02:58]} 4. c3 {[%clk 0:02:53]}  Nc6 {[%clk 0:02:57]} 5. h3 {[%clk 0:02:53]}  Qb6 {[%clk 0:02:47]} 6. Qb3 {[%clk 0:02:52]}  Be7 {[%clk 0:02:45]} 7. Nf3 {[%clk 0:02:51]}  d5 {[%clk 0:02:42]} 8. Nbd2 {[%clk 0:02:49]}  Bd7 {[%clk 0:02:37]} 9. Qc2 {[%clk 0:02:43]}  Rc8 {[%clk 0:02:34]} 10. Bd3 {[%clk 0:02:36]}  cxd4 {[%clk 0:02:32]} 11. exd4 {[%clk 0:02:07]}  Nb4 {[%clk 0:02:29]} 12. Qb1 {[%clk 0:02:07]}  Nxd3+ {[%clk 0:02:29]} 13. Qxd3 {[%clk 0:02:08]}  Qxb2 {[%clk 0:02:28]} 14. Rb1 {[%clk 0:02:08]}  Qxc3 {[%clk 0:02:28]} 15. Qxc3 {[%clk 0:02:07]}  Rxc3 {[%clk 0:02:29]} 16. O-O {[%clk 0:02:04]}  b6 {[%clk 0:02:19]} 17. Bb8 {[%clk 0:02:04]}  Ra3 {[%clk 0:02:14]} 18. Rb2 {[%clk 0:01:58]}  O-O {[%clk 0:02:12]} 19. Be5 {[%clk 0:01:56]}  Rc8 {[%clk 0:02:12]} 20. Nb3 {[%clk 0:01:55]}  Ne4 {[%clk 0:02:09]} 21. Nfd2 {[%clk 0:01:42]}  Nxd2 {[%clk 0:02:05]} 22. Rxd2 {[%clk 0:01:43]}  Bf6 {[%clk 0:02:02]} 23. Bxf6 {[%clk 0:01:42]}  gxf6 {[%clk 0:02:03]} 24. f4 {[%clk 0:01:37]}  f5 {[%clk 0:01:58]} 25. Rf3 {[%clk 0:01:37]}  Ba4 {[%clk 0:01:53]} 26. Rdd3 {[%clk 0:01:19]}  Bxb3 {[%clk 0:01:49]} 27. axb3 {[%clk 0:01:20]}  Rc2 {[%clk 0:01:46]} 28. Rg3+ {[%clk 0:01:19]}  Kf8 {[%clk 0:01:45]} 29. Rg5 {[%clk 0:01:14]}  Rb2 {[%clk 0:01:41]} 30. Rgg3 {[%clk 0:01:11]}  a5 {[%clk 0:01:40]} 31. Rc3 {[%clk 0:01:11]}  Raa2 {[%clk 0:01:31]} 32. Rc8+ {[%clk 0:01:10]}  Ke7 {[%clk 0:01:30]} 33. Rc7+ {[%clk 0:01:10]}  Kf6 {[%clk 0:01:30]} 34. Rb7 {[%clk 0:01:06]}  Ra3 {[%clk 0:01:12]} 35. Rxb6 {[%clk 0:01:05]}  a4 {[%clk 0:01:11]} 36. Rg8 {[%clk 0:01:01]}  Raxb3 {[%clk 0:01:07]} 37. Ra6 {[%clk 0:01:01]}  a3 {[%clk 0:01:05]} 38. Ra7 {[%clk 0:01:01]}  a2 {[%clk 0:01:03]} 39. Kh2 {[%clk 0:01:01]}  Rb7 {[%clk 0:01:02]} 40. Ra3 {[%clk 0:00:57]}  Rc7 {[%clk 0:01:02]} 41. Rga8 {[%clk 0:00:54]}  Rcc2 {[%clk 0:01:01]} 42. Kg3 {[%clk 0:00:34]}  Rxg2+ {[%clk 0:00:59]} 43. Kh4 {[%clk 0:00:34]}  Rg6 {[%clk 0:00:56]} 44. Rxa2 {[%clk 0:00:26]}  Rb3 {[%clk 0:00:54]} 0-1


[Site "https://www.chess.com"]

[Event "Titled Tuesday Blitz March 21 Early 2023"]
[White "Palacio,Igor Da Paz"]
[Black "Andreev, Konstantin"]
[WhiteFideId "2121140"]
[BlackFideId "24239305"]
[WhiteElo "2126"]
[BlackElo "2106"]
[Result "0-1"]
[Round "05"]
[TimeControl "180+2"]
[Date "2023.03.21"]
[WhiteClock "0:00:07"]
[BlackClock "0:00:12"]

1. e4 {[%clk 0:02:52]}  c5 {[%clk 0:02:59]} 2. Nc3 {[%clk 0:02:52]}  e6 {[%clk 0:02:59]} 3. g3 {[%clk 0:02:52]}  Nc6 {[%clk 0:02:59]} 4. Bg2 {[%clk 0:02:53]}  a6 {[%clk 0:02:59]} 5. d3 {[%clk 0:02:53]}  Nge7 {[%clk 0:02:59]} 6. f4 {[%clk 0:02:53]}  d6 {[%clk 0:02:58]} 7. Nf3 {[%clk 0:02:53]}  g6 {[%clk 0:02:59]} 8. O-O {[%clk 0:02:53]}  Bg7 {[%clk 0:02:59]} 9. Be3 {[%clk 0:02:52]}  O-O {[%clk 0:02:57]} 10. Rb1 {[%clk 0:02:50]}  b6 {[%clk 0:02:57]} 11. h3 {[%clk 0:02:42]}  b5 {[%clk 0:02:52]} 12. a3 {[%clk 0:02:33]}  Bb7 {[%clk 0:02:49]} 13. Kh2 {[%clk 0:02:31]}  Qc7 {[%clk 0:02:44]} 14. Bf2 {[%clk 0:02:17]}  Rae8 {[%clk 0:02:37]} 15. Qe2 {[%clk 0:02:14]}  f5 {[%clk 0:02:24]} 16. Ng5 {[%clk 0:01:56]}  Bc8 {[%clk 0:02:15]} 17. Qd1 {[%clk 0:01:52]}  h6 {[%clk 0:02:11]} 18. Nf3 {[%clk 0:01:52]}  Bb7 {[%clk 0:02:11]} 19. Ne2 {[%clk 0:01:47]}  Kh7 {[%clk 0:02:07]} 20. e5 {[%clk 0:01:40]}  dxe5 {[%clk 0:02:07]} 21. Bxc5 {[%clk 0:01:40]}  Nd4 {[%clk 0:01:25]} 22. Nexd4 {[%clk 0:01:39]}  exd4 {[%clk 0:01:14]} 23. Bxd4 {[%clk 0:01:27]}  Bxf3 {[%clk 0:01:01]} 24. Qxf3 {[%clk 0:01:25]}  Bxd4 {[%clk 0:00:58]} 25. c3 {[%clk 0:01:25]}  Bf6 {[%clk 0:00:57]} 26. Rfe1 {[%clk 0:01:25]}  Nd5 {[%clk 0:00:56]} 27. Re2 {[%clk 0:01:23]}  Rf7 {[%clk 0:00:48]} 28. Rbe1 {[%clk 0:01:21]}  Rfe7 {[%clk 0:00:48]} 29. d4 {[%clk 0:01:19]}  Nb6 {[%clk 0:00:46]} 30. h4 {[%clk 0:01:15]}  Nc4 {[%clk 0:00:44]} 31. h5 {[%clk 0:01:14]}  g5 {[%clk 0:00:42]} 32. Kg1 {[%clk 0:01:02]}  gxf4 {[%clk 0:00:41]} 33. gxf4 {[%clk 0:01:00]}  Bh4 {[%clk 0:00:33]} 34. Rf1 {[%clk 0:00:56]}  Rg8 {[%clk 0:00:28]} 35. Kh1 {[%clk 0:00:56]}  Rg3 {[%clk 0:00:24]} 36. Qa8 {[%clk 0:00:51]}  Reg7 {[%clk 0:00:15]} 37. Rg1 {[%clk 0:00:22]}  Qxf4 {[%clk 0:00:12]} 38. Rf1 {[%clk 0:00:13]}  Qg4 {[%clk 0:00:12]} 39. Qc6 {[%clk 0:00:08]}  Bg5 {[%clk 0:00:12]} 40. Qxe6 {[%clk 0:00:07]}  Qh4+ {[%clk 0:00:12]} 41. Kg1 {[%clk 0:00:07]}  Be3+ {[%clk 0:00:12]} 42. Rxe3 {[%clk 0:00:07]}  Rxg2# {[%clk 0:00:12]} 0-1


[Site "https://www.chess.com"]

[Event "Titled Tuesday Blitz March 21 Early 2023"]
[White "Lwanga, Aguda"]
[Black "Ljukin, Sergei"]
[WhiteFideId "10801529"]
[BlackFideId "14102200"]
[WhiteElo "1475"]
[BlackElo "2312"]
[Result "1-0"]
[Round "05"]
[TimeControl "180+2"]
[Date "2023.03.21"]
[WhiteClock "0:00:03"]
[BlackClock "0:00:02"]

1. e4 {[%clk 0:03:00]}  e6 {[%clk 0:03:00]} 2. d4 {[%clk 0:02:55]}  d5 {[%clk 0:03:00]} 3. Nd2 {[%clk 0:02:53]}  Nf6 {[%clk 0:03:00]} 4. e5 {[%clk 0:02:50]}  Nfd7 {[%clk 0:03:00]} 5. Bd3 {[%clk 0:02:48]}  c5 {[%clk 0:03:00]} 6. c3 {[%clk 0:02:44]}  Nc6 {[%clk 0:02:59]} 7. Ne2 {[%clk 0:02:41]}  cxd4 {[%clk 0:02:59]} 8. cxd4 {[%clk 0:02:37]}  f6 {[%clk 0:02:59]} 9. exf6 {[%clk 0:02:34]}  Qxf6 {[%clk 0:02:59]} 10. Nf3 {[%clk 0:02:30]}  h6 {[%clk 0:02:59]} 11. O-O {[%clk 0:02:24]}  Bd6 {[%clk 0:02:59]} 12. Ng3 {[%clk 0:02:14]}  O-O {[%clk 0:02:58]} 13. Be3 {[%clk 0:02:08]}  Rd8 {[%clk 0:02:57]} 14. Rc1 {[%clk 0:02:02]}  Nf8 {[%clk 0:02:54]} 15. Bb1 {[%clk 0:02:00]}  Bd7 {[%clk 0:02:52]} 16. a3 {[%clk 0:01:55]}  Be8 {[%clk 0:02:52]} 17. Re1 {[%clk 0:01:37]}  g5 {[%clk 0:02:42]} 18. h3 {[%clk 0:01:27]}  Rac8 {[%clk 0:02:31]} 19. Qd3 {[%clk 0:01:23]}  Bg6 {[%clk 0:02:26]} 20. Qe2 {[%clk 0:01:21]}  Bf7 {[%clk 0:02:05]} 21. Bd2 {[%clk 0:01:01]}  Nxd4 {[%clk 0:01:51]} 22. Nxd4 {[%clk 0:01:00]}  Qxd4 {[%clk 0:01:51]} 23. Bc3 {[%clk 0:00:57]}  Qf4 {[%clk 0:01:50]} 24. Rcd1 {[%clk 0:00:51]}  Rc4 {[%clk 0:01:29]} 25. Rd3 {[%clk 0:00:47]}  Re4 {[%clk 0:01:22]} 26. Qd1 {[%clk 0:00:44]}  Rxe1+ {[%clk 0:01:19]} 27. Qxe1 {[%clk 0:00:44]}  Qc4 {[%clk 0:01:03]} 28. Rf3 {[%clk 0:00:32]}  Qc7 {[%clk 0:00:43]} 29. Qe3 {[%clk 0:00:22]}  Qb6 {[%clk 0:00:28]} 30. Qd2 {[%clk 0:00:19]}  d4 {[%clk 0:00:22]} 31. Ba5 {[%clk 0:00:16]}  Qc6 {[%clk 0:00:08]} 32. Bxd8 {[%clk 0:00:16]}  e5 {[%clk 0:00:09]} 33. Nf5 {[%clk 0:00:13]}  Bc5 {[%clk 0:00:06]} 34. Nxh6+ {[%clk 0:00:12]}  Qxh6 {[%clk 0:00:06]} 35. Qd3 {[%clk 0:00:10]}  Qg7 {[%clk 0:00:03]} 36. Qb5 {[%clk 0:00:05]}  b6 {[%clk 0:00:02]} 37. Qc6 {[%clk 0:00:03]} 1-0


[Site "https://www.chess.com"]

[Event "Titled Tuesday Blitz March 21 Early 2023"]
[White "Spitzl, Vinzent"]
[Black "Loiacono, Antonio"]
[WhiteFideId "12901253"]
[BlackFideId "895415"]
[WhiteElo "2225"]
[BlackElo "2257"]
[Result "0-1"]
[Round "05"]
[TimeControl "180+2"]
[Date "2023.03.21"]
[WhiteClock "0:00:13"]
[BlackClock "0:00:23"]

1. e4 {[%clk 0:03:00]}  e5 {[%clk 0:03:00]} 2. Nf3 {[%clk 0:03:01]}  Nc6 {[%clk 0:03:00]} 3. Bb5 {[%clk 0:03:01]}  a6 {[%clk 0:03:00]} 4. Ba4 {[%clk 0:03:01]}  g6 {[%clk 0:03:00]} 5. O-O {[%clk 0:02:58]}  Bg7 {[%clk 0:03:00]} 6. c3 {[%clk 0:02:58]}  Nge7 {[%clk 0:03:00]} 7. d4 {[%clk 0:02:58]}  exd4 {[%clk 0:03:00]} 8. cxd4 {[%clk 0:02:59]}  b5 {[%clk 0:03:01]} 9. Bc2 {[%clk 0:02:53]}  d5 {[%clk 0:03:01]} 10. exd5 {[%clk 0:02:50]}  Nb4 {[%clk 0:02:58]} 11. Nc3 {[%clk 0:02:45]}  Nxc2 {[%clk 0:02:51]} 12. Qxc2 {[%clk 0:02:44]}  O-O {[%clk 0:02:49]} 13. Bg5 {[%clk 0:02:43]}  h6 {[%clk 0:02:50]} 14. Bh4 {[%clk 0:02:41]}  g5 {[%clk 0:02:49]} 15. Bg3 {[%clk 0:02:41]}  Nxd5 {[%clk 0:02:49]} 16. Nxd5 {[%clk 0:02:33]}  Qxd5 {[%clk 0:02:49]} 17. Qxc7 {[%clk 0:02:29]}  Bb7 {[%clk 0:02:48]} 18. h3 {[%clk 0:02:23]}  Rac8 {[%clk 0:02:36]} 19. Qd6 {[%clk 0:02:12]}  Qf5 {[%clk 0:02:24]} 20. Qb6 {[%clk 0:01:53]}  Bxf3 {[%clk 0:02:22]} 21. gxf3 {[%clk 0:01:53]}  Qxh3 {[%clk 0:02:16]} 22. Rac1 {[%clk 0:01:49]}  Rcd8 {[%clk 0:02:01]} 23. Rfd1 {[%clk 0:01:40]}  Rfe8 {[%clk 0:01:57]} 24. Qxa6 {[%clk 0:01:09]}  Bxd4 {[%clk 0:01:48]} 25. Rxd4 {[%clk 0:01:09]}  Rxd4 {[%clk 0:01:48]} 26. Qf6 {[%clk 0:01:10]}  Red8 {[%clk 0:01:33]} 27. Re1 {[%clk 0:00:55]}  Rd1 {[%clk 0:01:21]} 28. Qe5 {[%clk 0:00:55]}  Qe6 {[%clk 0:01:00]} 29. Rxd1 {[%clk 0:00:36]}  Rxd1+ {[%clk 0:00:55]} 30. Kg2 {[%clk 0:00:37]}  Qxe5 {[%clk 0:00:46]} 31. Bxe5 {[%clk 0:00:38]}  f5 {[%clk 0:00:39]} 32. a3 {[%clk 0:00:28]}  Kf7 {[%clk 0:00:38]} 33. Bc3 {[%clk 0:00:27]}  h5 {[%clk 0:00:36]} 34. Be5 {[%clk 0:00:27]}  Ke6 {[%clk 0:00:35]} 35. Bc3 {[%clk 0:00:26]}  Rc1 {[%clk 0:00:34]} 36. Bg7 {[%clk 0:00:26]}  f4 {[%clk 0:00:32]} 37. Bd4 {[%clk 0:00:25]}  Kf5 {[%clk 0:00:32]} 38. Bg7 {[%clk 0:00:23]}  g4 {[%clk 0:00:33]} 39. fxg4+ {[%clk 0:00:23]}  hxg4 {[%clk 0:00:33]} 40. Bd4 {[%clk 0:00:23]}  Rc2 {[%clk 0:00:27]} 41. Bc3 {[%clk 0:00:13]}  g3 {[%clk 0:00:24]} 42. Bd4 {[%clk 0:00:13]}  Ke4 {[%clk 0:00:23]} 0-1


[Site "https://www.chess.com"]

[Event "Titled Tuesday Blitz March 21 Early 2023"]
[White "Jaskolka, Tomasz"]
[Black "Mazurkiewicz, Michal"]
[WhiteFideId "1170791"]
[BlackFideId "1124943"]
[WhiteElo "2155"]
[BlackElo "2054"]
[Result "0-1"]
[Round "05"]
[TimeControl "180+2"]
[Date "2023.03.21"]
[WhiteClock "0:00:21"]
[BlackClock "0:00:17"]

1. d4 {[%clk 0:02:59]}  Nf6 {[%clk 0:02:52]} 2. c4 {[%clk 0:02:59]}  e5 {[%clk 0:02:52]} 3. dxe5 {[%clk 0:02:57]}  Ng4 {[%clk 0:02:53]} 4. e4 {[%clk 0:02:55]}  Nxe5 {[%clk 0:02:52]} 5. f4 {[%clk 0:02:55]}  Nec6 {[%clk 0:02:52]} 6. Be3 {[%clk 0:02:52]}  Bb4+ {[%clk 0:02:52]} 7. Nc3 {[%clk 0:02:52]}  a5 {[%clk 0:02:50]} 8. Nf3 {[%clk 0:02:51]}  Na6 {[%clk 0:02:50]} 9. Bd3 {[%clk 0:02:47]}  d6 {[%clk 0:02:50]} 10. O-O {[%clk 0:02:45]}  O-O {[%clk 0:02:50]} 11. Qe1 {[%clk 0:02:35]}  f5 {[%clk 0:02:38]} 12. a3 {[%clk 0:01:52]}  Nc5 {[%clk 0:02:28]} 13. Bc2 {[%clk 0:01:44]}  Bxc3 {[%clk 0:02:16]} 14. Qxc3 {[%clk 0:01:44]}  Nxe4 {[%clk 0:02:10]} 15. Qd3 {[%clk 0:01:26]}  Be6 {[%clk 0:01:54]} 16. Rfe1 {[%clk 0:01:20]}  Qf6 {[%clk 0:01:46]} 17. Nd4 {[%clk 0:01:18]}  Nxd4 {[%clk 0:01:44]} 18. Bxd4 {[%clk 0:01:19]}  Qf7 {[%clk 0:01:41]} 19. b3 {[%clk 0:01:14]}  a4 {[%clk 0:01:39]} 20. Bb2 {[%clk 0:01:04]}  axb3 {[%clk 0:01:35]} 21. Bxb3 {[%clk 0:00:58]}  b5 {[%clk 0:01:30]} 22. Rac1 {[%clk 0:00:55]}  Rfb8 {[%clk 0:01:11]} 23. Qd4 {[%clk 0:00:36]}  bxc4 {[%clk 0:01:08]} 24. Bxc4 {[%clk 0:00:36]}  Bxc4 {[%clk 0:01:06]} 25. Rxc4 {[%clk 0:00:36]}  Rxb2 {[%clk 0:00:56]} 26. Rec1 {[%clk 0:00:32]}  Rab8 {[%clk 0:00:38]} 27. g4 {[%clk 0:00:24]}  c5 {[%clk 0:00:36]} 28. Qd3 {[%clk 0:00:22]}  Qg6 {[%clk 0:00:34]} 29. g5 {[%clk 0:00:19]}  Qh5 {[%clk 0:00:31]} 30. R1c2 {[%clk 0:00:15]}  Qg4+ {[%clk 0:00:28]} 31. Kf1 {[%clk 0:00:14]}  Qxf4+ {[%clk 0:00:28]} 32. Kg2 {[%clk 0:00:15]}  Qxg5+ {[%clk 0:00:26]} 33. Kf3 {[%clk 0:00:15]}  Qg4+ {[%clk 0:00:19]} 34. Ke3 {[%clk 0:00:15]}  R2b3 {[%clk 0:00:12]} 35. R4c3 {[%clk 0:00:15]}  Rxc3 {[%clk 0:00:12]} 36. Rxc3 {[%clk 0:00:15]}  Nxc3 {[%clk 0:00:11]} 37. Qxd6 {[%clk 0:00:15]}  Qe4+ {[%clk 0:00:10]} 38. Kd2 {[%clk 0:00:14]}  Qd5+ {[%clk 0:00:10]} 39. Qxd5+ {[%clk 0:00:13]}  Nxd5 {[%clk 0:00:11]} 40. Kd3 {[%clk 0:00:14]}  Ra8 {[%clk 0:00:11]} 41. h4 {[%clk 0:00:14]}  Rxa3+ {[%clk 0:00:12]} 42. Kc4 {[%clk 0:00:14]}  Rh3 {[%clk 0:00:12]} 43. h5 {[%clk 0:00:14]}  Rxh5 {[%clk 0:00:13]} 44. Kd3 {[%clk 0:00:15]}  Rh4 {[%clk 0:00:13]} 45. Ke2 {[%clk 0:00:16]}  Rf4 {[%clk 0:00:13]} 46. Ke1 {[%clk 0:00:16]}  g5 {[%clk 0:00:14]} 47. Ke2 {[%clk 0:00:17]}  g4 {[%clk 0:00:15]} 48. Ke1 {[%clk 0:00:17]}  g3 {[%clk 0:00:16]} 49. Kd2 {[%clk 0:00:18]}  g2 {[%clk 0:00:16]} 50. Ke2 {[%clk 0:00:19]}  g1=Q {[%clk 0:00:16]} 51. Kd2 {[%clk 0:00:19]}  Qg3 {[%clk 0:00:16]} 52. Ke2 {[%clk 0:00:20]}  Rf2+ {[%clk 0:00:17]} 53. Kd1 {[%clk 0:00:21]}  Qg1# {[%clk 0:00:17]} 0-1


[Site "https://www.chess.com"]

[Event "Titled Tuesday Blitz March 21 Early 2023"]
[White "Kavutskiy, Konstantin"]
[Black "Topalov, Aleksandar"]
[WhiteFideId "2026384"]
[BlackFideId "925659"]
[WhiteElo "2369"]
[BlackElo "2151"]
[Result "1-0"]
[Round "05"]
[TimeControl "180+2"]
[Date "2023.03.21"]
[WhiteClock "0:01:57"]
[BlackClock "0:01:07"]

1. e4 {[%clk 0:03:00]}  e6 {[%clk 0:02:59]} 2. d4 {[%clk 0:03:01]}  d5 {[%clk 0:02:59]} 3. Nd2 {[%clk 0:03:01]}  Nf6 {[%clk 0:02:59]} 4. e5 {[%clk 0:03:01]}  Ng8 {[%clk 0:02:59]} 5. Bd3 {[%clk 0:03:00]}  Ne7 {[%clk 0:02:59]} 6. c3 {[%clk 0:02:58]}  Qd7 {[%clk 0:02:59]} 7. h4 {[%clk 0:02:57]}  h5 {[%clk 0:02:59]} 8. Ndf3 {[%clk 0:02:55]}  b6 {[%clk 0:02:59]} 9. Ne2 {[%clk 0:02:50]}  Ba6 {[%clk 0:02:58]} 10. O-O {[%clk 0:02:47]}  Bxd3 {[%clk 0:02:57]} 11. Qxd3 {[%clk 0:02:48]}  c5 {[%clk 0:02:48]} 12. Ng5 {[%clk 0:02:48]}  Nbc6 {[%clk 0:02:43]} 13. Ng3 {[%clk 0:02:44]}  Ng6 {[%clk 0:02:30]} 14. f4 {[%clk 0:02:27]}  Nxh4 {[%clk 0:02:28]} 15. f5 {[%clk 0:02:27]}  cxd4 {[%clk 0:01:59]} 16. fxe6 {[%clk 0:02:16]}  fxe6 {[%clk 0:01:59]} 17. cxd4 {[%clk 0:02:14]}  Nxd4 {[%clk 0:01:52]} 18. Rxf8+ {[%clk 0:02:11]}  Rxf8 {[%clk 0:01:52]} 19. Qxd4 {[%clk 0:02:11]}  Nf5 {[%clk 0:01:51]} 20. Nxf5 {[%clk 0:02:08]}  Rxf5 {[%clk 0:01:51]} 21. Be3 {[%clk 0:02:07]}  Qe7 {[%clk 0:01:48]} 22. Qa4+ {[%clk 0:02:03]}  Kf8 {[%clk 0:01:40]} 23. Qh4 {[%clk 0:01:59]}  g6 {[%clk 0:01:32]} 24. Qg3 {[%clk 0:01:58]}  Kg7 {[%clk 0:01:18]} 25. Rc1 {[%clk 0:01:57]}  Qd7 {[%clk 0:01:07]} 26. Rc7 {[%clk 0:01:57]} 1-0


[Site "https://www.chess.com"]